bitfinex/quotes_BTCUSD_20241203
["timestamp","ask_amount","ask_price","bid_price","bid_amount"]
[1733216818743,0.2132,95602.0,95592.0,0.209222]
[1733216819211,0.004,95602.0,95592.0,0.209222]
[1733216819418,0.013,95602.0,95592.0,0.209222]
[1733216819634,0.013,95602.0,95592.0,0.418444]
[1733216820051,0.022,95602.0,95592.0,0.419444]
[1733216820954,0.022,95602.0,95596.0,0.209212]
[1733216821167,0.022,95602.0,95600.0,0.209203]
[1733216821847,0.018,95602.0,95600.0,0.209203]
[1733216822075,0.018,95602.0,95601.0,0.078]
[1733216822286,0.022,95602.0,95601.0,0.078]
[1733216822510,0.004,95602.0,95601.0,0.17446471]
[1733216822719,0.013,95602.0,95601.0,0.17446471]
[1733216823383,0.013,95602.0,95601.0,0.17546471]
[1733216823600,0.009,95602.0,95601.0,0.17546471]
[1733216824045,0.013,95602.0,95601.0,0.17546471]
[1733216824258,0.004,95602.0,95601.0,0.078]
[1733216824476,0.001,95602.0,95601.0,0.078]
[1733216824887,0.001,95602.0,95601.0,0.08]
[1733216825325,0.001,95602.0,95601.0,0.078]
[1733216825751,0.001,95602.0,95601.0,0.079]
[1733216826186,0.001727,95606.0,95602.0,0.4184]
[1733216826620,0.001727,95606.0,95602.0,0.44035604]
[1733216827805,0.002727,95606.0,95602.0,0.44035604]
[1733216828641,0.002727,95606.0,95603.0,0.209198]
[1733216829070,0.002727,95606.0,95601.0,0.287202]
[1733216829293,0.002727,95606.0,95595.0,0.0787]
[1733216829515,0.001727,95606.0,95596.0,0.09946461]
[1733216829750,0.001727,95606.0,95597.0,0.209211]
[1733216829962,0.002727,95606.0,95597.0,0.209211]
[1733216830169,0.001727,95606.0,95596.0,0.09946461]
[1733216830394,0.001727,95606.0,95602.0,0.001]
[1733216830605,0.002727,95606.0,95602.0,0.001]
[1733216830818,0.209194,95605.0,95596.0,0.09946461]
[1733216831297,0.209196,95604.0,95592.0,0.0008634]
[1733216831511,0.18321259,95603.0,95592.0,0.0008634]
[1733216831726,0.2092,95602.0,95592.0,0.0008634]
[1733216832380,0.209205,95600.0,95592.0,0.0008634]
[1733216833488,0.209214,95596.0,95592.0,0.0008634]
[1733216834166,0.10471259,95599.0,95592.0,0.0008634]
[1733216834392,0.10471259,95599.0,95593.0,0.10283146]
[1733216834818,0.10471259,95599.0,95592.0,0.0018634]
[1733216835251,0.10471259,95599.0,95592.0,0.0008634]
[1733216835479,0.10471259,95599.0,95592.0,0.0028634]
[1733216835689,0.209209,95598.0,95592.0,0.0028634]
[1733216835913,0.31392159,95598.0,95592.0,0.0028634]
[1733216836379,0.10471259,95598.0,95592.0,0.0028634]
[1733216836815,0.10471259,95598.0,95592.0,0.0018634]
[1733216837030,0.10471259,95598.0,95592.0,0.0008634]
[1733216837259,0.10471259,95598.0,95592.0,0.0018634]
[1733216838382,0.10471259,95598.0,95593.0,0.08203136]
[1733216838604,0.10471259,95598.0,95592.0,0.0018634]
[1733216840246,0.10471259,95598.0,95592.0,0.0008634]
[1733216840707,0.10453544,95598.0,95593.0,0.001]
[1733216841241,0.10453544,95598.0,95592.0,0.0008634]
[1733216841453,0.209211,95597.0,95592.0,0.0008634]
[1733216841677,0.209211,95597.0,95592.0,0.0018634]
[1733216842145,0.209219,95594.0,95592.0,0.0008634]
[1733216842355,0.286819,95594.0,95593.0,0.001]
[1733216842591,0.0776,95594.0,95593.0,0.001]
[1733216842820,0.22781259,95594.0,95593.0,0.001]
[1733216843078,0.25081259,95594.0,95593.0,0.001]
[1733216843756,0.23222,95593.0,95592.0,0.0008634]
[1733216843994,0.33693259,95593.0,95592.0,0.0018634]
[1733216844442,0.33693259,95593.0,95592.0,0.0008634]
[1733216845738,0.34293259,95593.0,95592.0,0.0018634]
[1733216846615,0.34493259,95593.0,95592.0,0.0018634]
[1733216875099,0.32193259,95593.0,95592.0,0.0018634]
[1733216875305,0.11271259,95593.0,95592.0,0.0018634]
[1733216885360,0.13571259,95593.0,95592.0,0.0018634]
[1733216898166,0.13566947,95593.0,95592.0,0.0018634]
[1733216899862,0.13653297,95593.0,95592.0,0.0018634]
[1733216909982,0.26143297,95593.0,95592.0,0.0018634]
[1733216914762,0.13653297,95593.0,95592.0,0.0018634]
[1733216937897,0.21713297,95593.0,95592.0,0.0018634]
[1733216946357,0.13653297,95593.0,95592.0,0.05934361]
[1733216946580,0.13653297,95593.0,95592.0,0.0018634]
[1733216947675,0.0088635,95593.0,95592.0,0.0018634]
[1733216955624,0.11357609,95593.0,95592.0,0.0018634]
[1733216955846,0.13657609,95593.0,95592.0,0.0018634]
[1733216958484,0.16338886,95593.0,95592.0,0.0018634]
[1733216962797,0.13657609,95593.0,95592.0,0.0018634]
[1733216966699,0.11357609,95593.0,95592.0,0.0018634]
[1733216970286,0.13657609,95593.0,95592.0,0.0018634]
[1733216970493,0.209202,95601.0,95599.0,3.3504815]
[1733216971553,0.209202,95601.0,95599.0,3.32119682]
[1733216972206,0.10471259,95600.0,95599.0,3.32219682]
[1733216972417,0.10338546,95600.0,95599.0,3.32219682]
[1733216973289,0.10338546,95600.0,95599.0,3.32119682]
[1733216973526,0.23318546,95600.0,95599.0,3.32119682]
[1733216973738,0.24218546,95600.0,95599.0,3.32219682]
[1733216974603,0.24618546,95600.0,95599.0,3.32219682]
[1733216977804,0.24618546,95600.0,95599.0,3.27523824]
[1733216980301,0.24791266,95600.0,95599.0,3.23368773]
[1733216981509,0.23891266,95600.0,95599.0,3.23268773]
[1733216981750,0.23891266,95600.0,95599.0,3.23368773]
[1733216981751,0.24391266,95600.0,95599.0,3.23368773]
[1733216981998,0.25091266,95600.0,95599.0,3.23468773]
[1733216982242,0.25016091,95600.0,95599.0,3.23468773]
[1733216983193,0.24316091,95600.0,95599.0,3.23368773]
[1733216983697,0.24916091,95600.0,95599.0,3.23468773]
[1733216992801,0.24916091,95600.0,95599.0,3.23555123]
[1733217000971,0.24916091,95600.0,95599.0,3.23055123]
[1733217001861,0.16916091,95600.0,95599.0,3.23055123]
[1733217003026,0.16916091,95600.0,95599.0,3.20928468]
[1733217003569,0.16916091,95600.0,95599.0,3.18793468]
[1733217003996,0.24436091,95600.0,95599.0,3.04436692]
[1733217004215,0.24516646,95600.0,95599.0,2.96068292]
[1733217004657,0.24516646,95600.0,95599.0,2.93976192]
[1733217005294,0.24516646,95600.0,95599.0,2.93876192]
[1733217005295,0.23616646,95600.0,95599.0,2.93876192]
[1733217005548,0.24516646,95600.0,95599.0,2.89791992]
[1733217005783,0.26053785,95600.0,95599.0,2.85507792]
[1733217005985,0.26053785,95600.0,95599.0,2.79231492]
[1733217006195,0.26853785,95600.0,95599.0,2.79331492]
[1733217009266,0.46853785,95600.0,95599.0,2.79331492]
[1733217009727,0.46853785,95600.0,95599.0,2.75147292]
[1733217011007,0.46853785,95600.0,95599.0,2.69937577]
[1733217011453,0.46868427,95600.0,95599.0,2.61035245]
[1733217011666,1.01498427,95600.0,95599.0,2.40581235]
[1733217012161,1.00698427,95600.0,95599.0,2.40481235]
[1733217012383,0.99798427,95600.0,95599.0,2.40381235]
[1733217012608,1.00598427,95600.0,95599.0,2.40381235]
[1733217012828,1.83089427,95600.0,95599.0,2.29920735]
[1733217013041,1.82289427,95600.0,95599.0,2.21388335]
[1733217013286,1.84089427,95600.0,95599.0,2.203671]
[1733217013726,1.83189427,95600.0,95599.0,2.161829]
[1733217013956,1.83189427,95600.0,95599.0,2.140908]
[1733217014417,1.83189427,95600.0,95599.0,2.099066]
[1733217014668,1.81389427,95600.0,95599.0,2.057224]
[1733217014905,1.82289427,95600.0,95599.0,2.036303]
[1733217015131,1.82289427,95600.0,95599.0,1.94777599]
[1733217015132,1.83189427,95600.0,95599.0,1.94777599]
[1733217015353,1.80739427,95600.0,95599.0,1.69157599]
[1733217015590,2.25689427,95600.0,95599.0,1.50765617]
[1733217015824,2.23680615,95600.0,95599.0,1.42397217]
[1733217016053,2.24580615,95600.0,95599.0,1.42397217]
[1733217016264,2.24580615,95600.0,95599.0,1.40865365]
[1733217016729,2.24580615,95600.0,95599.0,1.33419772]
[1733217017198,2.23680615,95600.0,95599.0,1.29235572]
[1733217017648,2.22780615,95600.0,95599.0,1.27143472]
[1733217017859,2.22780615,95600.0,95599.0,1.20867172]
[1733217018064,2.23680615,95600.0,95599.0,1.18775072]
[1733217018763,2.23680615,95600.0,95599.0,1.12498772]
[1733217018989,2.23680615,95600.0,95599.0,1.08314572]
[1733217018990,2.24580615,95600.0,95599.0,1.08314572]
[1733217019193,2.24565973,95600.0,95599.0,1.08314572]
[1733217020067,2.23665973,95600.0,95599.0,1.04130372]
[1733217020297,2.24565973,95600.0,95599.0,0.99946172]
[1733217020506,2.24565973,95600.0,95599.0,0.97854072]
[1733217020714,2.24565973,95600.0,95599.0,0.95761972]
[1733217020932,2.23665973,95600.0,95599.0,0.91577772]
[1733217021141,2.24565973,95600.0,95599.0,0.89485672]
[1733217021358,2.24565973,95600.0,95599.0,0.87393572]
[1733217022672,2.24565973,95600.0,95599.0,0.83209372]
[1733217024384,2.35585973,95600.0,95599.0,0.81117272]
[1733217024598,2.35585973,95600.0,95599.0,0.79025172]
[1733217025074,2.36676809,95600.0,95599.0,0.70656772]
[1733217025719,2.36676809,95600.0,95599.0,0.68564672]
[1733217025943,2.36676809,95600.0,95599.0,0.66472572]
[1733217026697,1.69624309,95600.0,95599.0,0.51827872]
[1733217026914,1.08250009,95600.0,95599.0,0.51827872]
[1733217027143,1.00029809,95600.0,95599.0,0.51827872]
[1733217027579,0.89065809,95600.0,95599.0,0.56417872]
[1733217027794,0.34435809,95600.0,95599.0,0.64067872]
[1733217028018,0.33345313,95600.0,95599.0,0.64067872]
[1733217028435,0.32445313,95600.0,95599.0,0.64067872]
[1733217028658,0.31545313,95600.0,95599.0,0.64067872]
[1733217028866,0.32445313,95600.0,95599.0,0.64067872]
[1733217029090,0.33345313,95600.0,95599.0,0.64067872]
[1733217029314,0.32445313,95600.0,95599.0,0.64067872]
[1733217030195,5.23605613,95600.0,95599.0,0.33948497]
[1733217030410,6.01098474,95600.0,95599.0,0.20290483]
[1733217030636,1.17813275,95588.0,95587.0,0.00964491]
[1733217030855,8.0579788,95588.0,95587.0,0.00964491]
[1733217031087,8.08727006,95588.0,95587.0,0.00964491]
[1733217031562,0.45,95572.0,95571.0,9.1e-07]
[1733217031781,0.76594294,95572.0,95571.0,9.1e-07]
[1733217032003,0.76682698,95572.0,95571.0,9.1e-07]
[1733217032864,0.2,95555.0,95554.0,0.05335539]
[1733217033068,5.21631559,95555.0,95554.0,0.05335539]
[1733217033274,5.21724461,95555.0,95554.0,0.05335539]
[1733217033715,5.21974196,95555.0,95554.0,0.05239583]
[1733217034194,5.01974196,95555.0,95554.0,0.05254912]
[1733217034414,5.22874196,95555.0,95554.0,0.05254912]
[1733217035320,5.23774196,95555.0,95554.0,0.05254912]
[1733217037528,5.23774196,95555.0,95554.0,0.05341262]
[1733217037989,5.22874196,95555.0,95554.0,0.05341262]
[1733217038192,5.21974196,95555.0,95554.0,0.05341262]
[1733217038402,0.31713896,95555.0,95554.0,0.05341262]
[1733217038622,0.32613896,95555.0,95554.0,0.05341262]
[1733217038858,5.23774196,95555.0,95554.0,0.05341262]
[1733217042176,5.22874196,95555.0,95554.0,0.05341262]
[1733217042617,5.23774196,95555.0,95554.0,0.05341262]
[1733217045639,5.03774196,95555.0,95554.0,0.05341262]
[1733217046710,5.06703583,95555.0,95554.0,0.05341262]
[1733217047365,5.03774196,95555.0,95554.0,0.05341262]
[1733217048690,0.12613896,95555.0,95554.0,0.05341262]
[1733217048898,5.03774196,95555.0,95554.0,0.05341262]
[1733217050026,5.0363553,95555.0,95554.0,0.05341262]
[1733217050670,5.0656455,95555.0,95554.0,0.05341262]
[1733217054698,5.0363553,95555.0,95554.0,0.05341262]
[1733217054910,5.06564312,95555.0,95554.0,0.05341262]
[1733217057990,5.0647141,95555.0,95554.0,0.05341262]
[1733217060437,0.209305,95554.0,95552.0,0.0489]
[1733217060577,0.10471259,95553.0,95552.0,0.0489]
[1733217060957,5.04807451,95553.0,95552.0,0.0489]
[1733217062889,5.06607451,95553.0,95552.0,0.0489]
[1733217063340,5.06704254,95553.0,95552.0,0.1318]
[1733217063757,5.03775472,95553.0,95552.0,0.1318]
[1733217064390,5.0671511,95553.0,95552.0,0.1318]
[1733217064594,0.1555481,95553.0,95552.0,0.1318]
[1733217065014,5.03775472,95553.0,95552.0,0.1318]
[1733217065432,5.0671511,95553.0,95552.0,0.1318]
[1733217066510,5.0671511,95553.0,95552.0,0.0489]
[1733217067395,0.20931,95552.0,95545.0,0.0824]
[1733217067629,5.25502197,95552.0,95545.0,0.0824]
[1733217067841,5.2584561,95552.0,95545.0,0.0824]
[1733217069133,5.2674561,95552.0,95545.0,0.0824]
[1733217069345,5.2764561,95552.0,95551.0,0.0023717]
[1733217070259,5.2764561,95552.0,95551.0,0.0829717]
[1733217070471,5.2764561,95552.0,95551.0,0.08040818]
[1733217071809,5.27368271,95552.0,95551.0,0.08040818]
[1733217072695,5.27368271,95552.0,95551.0,0.08127208]
[1733217072914,5.27270842,95552.0,95551.0,0.08127208]
[1733217075381,0.36110542,95552.0,95551.0,0.08127208]
[1733217075585,5.52459449,95552.0,95551.0,0.08127208]
[1733217075798,0.61351854,95552.0,95551.0,0.08127208]
[1733217075982,5.52512154,95552.0,95551.0,0.08127208]
[1733217076426,5.27270956,95552.0,95551.0,0.08127208]
[1733217081478,5.29366828,95552.0,95551.0,0.08127208]
[1733217081959,5.28366828,95552.0,95551.0,0.08127208]
[1733217082948,5.26270956,95552.0,95551.0,0.08127208]
[1733217083224,5.26270956,95552.0,95551.0,0.12797208]
[1733217085952,0.35110656,95552.0,95551.0,0.12797208]
[1733217086200,5.26270956,95552.0,95551.0,0.12797208]
[1733217086456,5.23331204,95552.0,95551.0,0.12797208]
[1733217086683,5.26270956,95552.0,95551.0,0.12797208]
[1733217094558,5.26252817,95552.0,95551.0,0.12797208]
[1733217095628,5.26425597,95552.0,95551.0,0.12797208]
[1733217096551,0.35265297,95552.0,95551.0,0.12797208]
[1733217096787,0.32325545,95552.0,95551.0,0.12797208]
[1733217097018,5.26425597,95552.0,95551.0,0.12797208]
[1733217101258,5.28531927,95552.0,95551.0,0.12797208]
[1733217102722,5.26425597,95552.0,95551.0,0.12797208]
[1733217104176,5.26921597,95552.0,95551.0,0.08127208]
[1733217104421,5.26921597,95552.0,95551.0,0.0008639]
[1733217105158,5.26921597,95552.0,95551.0,0.0502639]
[1733217105423,5.26921597,95552.0,95551.0,0.1311639]
[1733217108354,5.26921597,95552.0,95551.0,0.0502639]
[1733217109047,5.26921597,95552.0,95551.0,0.0008639]
[1733217111269,0.35761297,95552.0,95551.0,0.0008639]
[1733217111482,0.32821545,95552.0,95551.0,0.0008639]
[1733217111739,5.26921597,95552.0,95551.0,0.0008639]
[1733217111937,0.35761297,95552.0,95551.0,0.0008639]
[1733217112146,5.26921597,95552.0,95551.0,0.0008639]
[1733217112490,5.26850766,95552.0,95551.0,0.0008639]
[1733217112697,5.26900474,95552.0,95551.0,0.0008639]
[1733217112998,0.209323,95546.0,95545.0,0.0775]
[1733217113209,5.22563859,95546.0,95545.0,0.0775]
[1733217113452,0.34518204,95546.0,95545.0,0.0775]
[1733217113669,0.31628421,95546.0,95545.0,0.0775]
[1733217114104,5.22788721,95546.0,95545.0,0.0775]
[1733217114324,5.25728473,95546.0,95545.0,0.0775]
[1733217114542,5.26528473,95546.0,95545.0,0.0775]
[1733217114800,5.27428473,95546.0,95545.0,0.0775]
[1733217116541,5.27365508,95546.0,95545.0,0.0775]
[1733217116751,5.27411724,95546.0,95545.0,0.0775]
[1733217119135,5.27372,95546.0,95545.0,0.0775]
[1733217119357,5.27372,95546.0,95545.0,0.0783636]
[1733217120877,5.27372,95546.0,95545.0,0.0008636]
[1733217121371,5.27372,95546.0,95545.0,0.00111241]
[1733217121835,0.362117,95546.0,95545.0,0.00111241]
[1733217122101,0.33271948,95546.0,95545.0,0.00111241]
[1733217122994,5.24432248,95546.0,95545.0,0.00111241]
[1733217127477,5.26548641,95546.0,95545.0,0.00111241]
[1733217127720,5.26519166,95546.0,95545.0,0.00111241]
[1733217128199,5.24402773,95546.0,95545.0,0.00111241]
[1733217129912,5.24402773,95546.0,95545.0,0.00095379]
[1733217131714,5.24575493,95546.0,95545.0,0.00095379]
[1733217132555,0.33415193,95546.0,95545.0,0.00095379]
[1733217132784,5.24575493,95546.0,95545.0,0.00095379]
[1733217133215,5.26622073,95546.0,95545.0,0.00095379]
[1733217136321,5.45507793,95546.0,95543.0,0.0481]
[1733217136530,0.209327,95544.0,95543.0,0.0481]
[1733217136736,5.22564259,95544.0,95543.0,0.0481]
[1733217136942,5.22769503,95544.0,95543.0,0.0481]
[1733217137800,5.23669503,95544.0,95543.0,0.0481]
[1733217138434,5.24469503,95544.0,95543.0,0.0481]
[1733217143252,0.33309203,95544.0,95543.0,0.0489636]
[1733217143697,5.24469503,95544.0,95543.0,0.0489636]
[1733217147893,5.24469503,95544.0,95543.0,0.1252636]
[1733217148348,5.24469503,95544.0,95543.0,0.0489636]
[1733217148600,5.80072259,95544.0,95526.0,0.0008636]
[1733217148835,0.10471259,95542.0,95530.0,0.0827]
[1733217149089,5.0457024,95542.0,95530.0,0.0827]
[1733217149349,5.04775725,95542.0,95530.0,0.0827]
[1733217150576,5.06575725,95542.0,95530.0,0.0827]
[1733217152259,5.06575725,95542.0,95541.0,0.0836]
[1733217152491,5.3183034,95542.0,95541.0,0.0836]
[1733217155967,5.3183034,95542.0,95541.0,0.002]
[1733217156401,5.3183034,95542.0,95541.0,0.0028637]
[1733217157044,5.03637044,95542.0,95541.0,0.0028637]
[1733217159495,5.31823232,95542.0,95541.0,0.0028637]
[1733217163767,5.03637044,95542.0,95541.0,0.0028637]
[1733217163994,5.31812311,95542.0,95541.0,0.0028637]
[1733217165355,5.31806917,95542.0,95541.0,0.0028637]
[1733217167142,5.03637044,95542.0,95541.0,0.0028637]
[1733217167379,5.06570891,95542.0,95541.0,0.0028637]
[1733217167834,5.05670891,95542.0,95541.0,0.0028637]
[1733217168080,5.06570891,95542.0,95541.0,0.0028637]
[1733217169019,5.05670891,95542.0,95541.0,0.0028637]
[1733217169237,5.06570891,95542.0,95541.0,0.0028637]
[1733217170662,0.15410591,95542.0,95541.0,0.0028637]
[1733217170896,5.03637044,95542.0,95541.0,0.0028637]
[1733217171113,5.06570891,95542.0,95541.0,0.0028637]
[1733217174930,5.08642826,95542.0,95541.0,0.0028637]
[1733217178185,5.06570891,95542.0,95541.0,0.0028637]
[1733217180973,5.06570891,95542.0,95541.0,0.0819637]
[1733217181200,0.15410591,95542.0,95541.0,0.0819637]
[1733217181411,5.03637044,95542.0,95541.0,0.0819637]
[1733217181634,5.06570891,95542.0,95541.0,0.0819637]
[1733217185806,5.06585533,95542.0,95541.0,0.0028637]
[1733217186234,5.06585533,95542.0,95527.0,0.0472]
[1733217186235,0.209334,95541.0,95527.0,0.0472]
[1733217186387,0.31406559,95532.0,95527.0,0.0472]
[1733217188093,0.33106559,95532.0,95527.0,0.0472]
[1733217188521,0.33304159,95532.0,95527.0,0.0472]
[1733217188739,0.33106559,95532.0,95527.0,0.0472]
[1733217189580,0.33304013,95532.0,95527.0,0.0472]
[1733217189834,0.33106559,95532.0,95527.0,0.0472]
[1733217191371,0.3330363,95532.0,95527.0,0.0472]
[1733217191782,0.33106559,95532.0,95527.0,0.0472]
[1733217192029,0.33303629,95532.0,95527.0,0.0472]
[1733217192243,0.33106559,95532.0,95527.0,0.0472]
[1733217192451,0.33106559,95532.0,95526.0,0.0008636]
[1733217192885,0.33303629,95532.0,95526.0,0.0008636]
[1733217193093,3.37917006,95532.0,95526.0,0.0008636]
[1733217193297,3.37117006,95532.0,95526.0,0.0008636]
[1733217193505,3.36892006,95532.0,95526.0,0.0008636]
[1733217193708,2.83136006,95532.0,95531.0,0.0028637]
[1733217194320,2.82236006,95532.0,95531.0,0.0028637]
[1733217194522,2.22101706,95532.0,95531.0,0.0028637]
[1733217194723,2.20067859,95532.0,95531.0,0.0028637]
[1733217195345,2.17944559,95532.0,95531.0,0.0028637]
[1733217195565,2.17944559,95532.0,95531.0,0.02346596]
[1733217195793,2.17944559,95532.0,95531.0,0.0028637]
[1733217196684,2.17044559,95532.0,95531.0,0.0028637]
[1733217197127,2.11846359,95532.0,95531.0,0.0028637]
[1733217197339,2.10946359,95532.0,95531.0,0.0028637]
[1733217197775,2.11846359,95532.0,95531.0,0.0028637]
[1733217198499,2.43556546,95532.0,95531.0,0.0028637]
[1733217199613,2.42656546,95532.0,95531.0,0.0028637]
[1733217200041,2.43556546,95532.0,95531.0,0.0028637]
[1733217200490,2.41756546,95532.0,95531.0,0.0028637]
[1733217200725,2.42656546,95532.0,95531.0,0.0028637]
[1733217200947,2.43556546,95532.0,95531.0,0.0028637]
[1733217201836,2.4354044,95532.0,95531.0,0.0028637]
[1733217202692,2.4354044,95532.0,95531.0,7e-07]
[1733217202929,0.33221201,95532.0,95531.0,7e-07]
[1733217203182,0.33221201,95532.0,95526.0,0.0008636]
[1733217203183,4.911603,95531.0,95526.0,0.0008636]
[1733217203402,4.911603,95531.0,95515.0,0.0471]
[1733217203403,0.209375,95522.0,95520.0,6e-07]
[1733217203648,4.40189959,95521.0,95520.0,6e-07]
[1733217203892,0.13419748,95521.0,95520.0,6e-07]
[1733217204112,0.10485901,95521.0,95520.0,6e-07]
[1733217204787,0.10491754,95521.0,95520.0,6e-07]
[1733217205003,0.11391754,95521.0,95520.0,6e-07]
[1733217205653,0.11377112,95521.0,95520.0,6e-07]
[1733217205899,0.13519755,95521.0,95520.0,6e-07]
[1733217206118,0.14419755,95521.0,95520.0,6e-07]
[1733217207030,0.46072695,95521.0,95520.0,6e-07]
[1733217207242,0.14419755,95521.0,95520.0,6e-07]
[1733217207889,0.42566704,95521.0,95520.0,6e-07]
[1733217208123,0.14419755,95521.0,95520.0,6e-07]
[1733217208334,0.12277112,95521.0,95520.0,6e-07]
[1733217208997,0.12277112,95521.0,95520.0,0.0829006]
[1733217209669,0.26352271,95521.0,95520.0,0.0829006]
[1733217209894,0.12277112,95521.0,95520.0,0.0829006]
[1733217212581,0.12277112,95521.0,95520.0,0.1297006]
[1733217213245,0.11377112,95521.0,95520.0,0.1297006]
[1733217213469,0.10477112,95521.0,95520.0,0.1297006]
[1733217213688,0.11377112,95521.0,95520.0,0.1297006]
[1733217213905,0.12277112,95521.0,95520.0,0.1297006]
[1733217214134,0.11377112,95521.0,95520.0,0.1297006]
[1733217214345,0.12277112,95521.0,95520.0,0.1297006]
[1733217214609,0.12277112,95521.0,95520.0,0.13003861]
[1733217214821,0.11377112,95521.0,95520.0,0.13003861]
[1733217215261,0.12077112,95521.0,95520.0,0.13003861]
[1733217218901,0.33014912,95521.0,95520.0,0.13003861]
[1733217219141,0.12077112,95521.0,95520.0,0.13003861]
[1733217228856,0.12077112,95521.0,95520.0,0.12891427]
[1733217229506,0.12077112,95521.0,95520.0,0.12891434]
[1733217229978,0.12077112,95521.0,95520.0,0.12977824]
[1733217230186,0.12249892,95521.0,95520.0,0.12977824]
[1733217232726,0.12249892,95521.0,95520.0,0.12977825]
[1733217233338,0.14321645,95521.0,95520.0,0.12977825]
[1733217238397,0.14277159,95521.0,95520.0,0.12977826]
[1733217242381,0.14277159,95521.0,95520.0,0.12977827]
[1733217243159,0.14235831,95521.0,95520.0,0.12977827]
[1733217244077,0.29235831,95521.0,95520.0,0.12977827]
[1733217245475,0.29235831,95521.0,95520.0,0.33915827]
[1733217245707,0.27164078,95521.0,95520.0,0.33915827]
[1733217246173,0.01778633,95521.0,95520.0,0.33915827]
[1733217246847,0.01752032,95521.0,95520.0,0.33915828]
[1733217251490,0.01752032,95521.0,95520.0,0.33915829]
[1733217254325,0.01752032,95521.0,95520.0,0.12977829]
[1733217256170,0.01711369,95521.0,95520.0,0.12977829]
[1733217257878,0.01711369,95521.0,95520.0,0.1297783]
[1733217259413,0.26092571,95521.0,95520.0,0.1297783]
[1733217260048,0.16711369,95521.0,95520.0,0.1297783]
[1733217263511,0.01711369,95521.0,95520.0,0.1297783]
[1733217266140,0.16711369,95521.0,95520.0,0.1297783]
[1733217266569,0.2611005,95521.0,95520.0,0.1297783]
[1733217266780,0.16711369,95521.0,95520.0,0.1297783]
[1733217267215,0.01711369,95521.0,95520.0,0.1297783]
[1733217268331,0.16711369,95521.0,95520.0,0.1297783]
[1733217269210,0.26111009,95521.0,95520.0,0.1297783]
[1733217272057,0.01711369,95521.0,95520.0,0.1297783]
[1733217273563,0.16711369,95521.0,95520.0,0.1297783]
[1733217273771,0.01711369,95521.0,95520.0,0.1297783]
[1733217274227,0.16711369,95521.0,95520.0,0.1297783]
[1733217274728,0.16711369,95521.0,95520.0,0.13000469]
[1733217275798,0.01711369,95521.0,95520.0,0.13000469]
[1733217276209,0.26111511,95521.0,95520.0,0.13000469]
[1733217276414,0.16711369,95521.0,95520.0,0.13000469]
[1733217277682,0.27182628,95521.0,95520.0,0.13000469]
[1733217278355,0.41282088,95521.0,95520.0,0.13000469]
[1733217278588,0.41284053,95521.0,95520.0,0.08320469]
[1733217279001,0.41284053,95521.0,95520.0,0.00142843]
[1733217283470,0.41285923,95521.0,95520.0,0.00142843]
[1733217283673,0.27182628,95521.0,95520.0,0.00142843]
[1733217286165,0.45987668,95521.0,95520.0,0.00142843]
[1733217286604,0.27182628,95521.0,95520.0,0.00142843]
[1733217290305,0.45983711,95521.0,95520.0,0.00142843]
[1733217290512,0.27182628,95521.0,95520.0,0.00142843]
[1733217294655,0.45983711,95521.0,95520.0,0.00142843]
[1733217295782,0.27182628,95521.0,95520.0,0.00142843]
[1733217295993,0.4598588,95521.0,95520.0,0.00142843]
[1733217296206,0.27182628,95521.0,95520.0,0.00142843]
[1733217298085,0.50689585,95521.0,95520.0,0.00142843]
[1733217298317,0.50689026,95521.0,95520.0,0.00142843]
[1733217298529,0.27182628,95521.0,95520.0,0.00142843]
[1733217300626,0.50689026,95521.0,95520.0,0.00142843]
[1733217301775,0.50699839,95521.0,95520.0,0.00142843]
[1733217302438,0.27182628,95521.0,95520.0,0.00142843]
[1733217308863,0.45995561,95521.0,95520.0,0.00142843]
[1733217310633,0.45995561,95521.0,95520.0,0.07732843]
[1733217310852,0.45995561,95521.0,95520.0,0.12632844]
[1733217311505,0.45995032,95521.0,95520.0,0.12632844]
[1733217314437,0.45995032,95521.0,95520.0,0.00142844]
[1733217314890,0.27182628,95521.0,95520.0,0.00142844]
[1733217322927,0.50695367,95521.0,95520.0,0.00142844]
[1733217323161,0.27182628,95521.0,95520.0,0.00142844]
[1733217325181,0.50720554,95521.0,95520.0,0.00142844]
[1733217326651,0.27182628,95521.0,95520.0,0.00142844]
[1733217326873,0.50721149,95521.0,95520.0,0.00142844]
[1733217327546,0.26482628,95521.0,95520.0,0.00142844]
[1733217327771,0.25644039,95521.0,95520.0,0.00142844]
[1733217328000,0.26344039,95521.0,95520.0,0.00142844]
[1733217328233,0.27244039,95521.0,95520.0,0.00142844]
[1733217329170,0.26544039,95521.0,95520.0,0.00142844]
[1733217329669,0.27244039,95521.0,95520.0,0.00142844]
[1733217330797,0.46073309,95521.0,95520.0,0.00142844]
[1733217331020,0.27244039,95521.0,95520.0,0.00142844]
[1733217331689,0.50780202,95521.0,95520.0,0.00142844]
[1733217332781,0.50780202,95521.0,95520.0,0.00163417]
[1733217333019,0.27244039,95521.0,95520.0,0.00163417]
[1733217333889,0.35603633,95521.0,95520.0,0.124387]
[1733217334101,0.1677278,95521.0,95520.0,0.124387]
[1733217334739,0.35603633,95521.0,95520.0,0.124387]
[1733217337924,0.26188311,95521.0,95520.0,0.124387]
[1733217338148,0.1677278,95521.0,95520.0,0.124387]
[1733217340130,0.0177278,95521.0,95520.0,0.12253417]
[1733217340582,0.0177278,95521.0,95520.0,0.12438691]
[1733217341984,0.0177278,95521.0,95520.0,0.12438692]
[1733217345164,0.0177278,95521.0,95520.0,0.12253418]
[1733217345974,0.0177278,95521.0,95520.0,0.12438692]
[1733217346190,0.1677278,95521.0,95520.0,0.12438692]
[1733217346821,0.1677278,95521.0,95520.0,0.12253418]
[1733217347881,0.2618031,95521.0,95520.0,0.12253418]
[1733217348951,0.2618031,95521.0,95520.0,0.12438695]
[1733217349182,0.1677278,95521.0,95520.0,0.12438695]
[1733217349393,0.0177278,95521.0,95520.0,0.12253418]
[1733217349601,0.0177278,95521.0,95520.0,0.12438691]
[1733217350044,0.0017278,95521.0,95520.0,0.12438691]
[1733217350291,0.0107278,95521.0,95520.0,0.12438691]
[1733217350637,0.0017278,95521.0,95520.0,0.12438691]
[1733217350638,0.0017278,95521.0,95520.0,0.12253418]
[1733217350837,0.0107278,95521.0,95520.0,0.12438689]
[1733217351221,0.0157278,95521.0,95520.0,0.12438689]
[1733217351899,0.0107278,95521.0,95520.0,0.12438689]
[1733217352815,0.0157278,95521.0,95520.0,0.12438689]
[1733217354192,0.0157278,95521.0,95520.0,0.12253418]
[1733217354431,0.0157278,95521.0,95520.0,0.1243869]
[1733217362485,0.0157278,95521.0,95520.0,0.12253418]
[1733217364812,0.0157278,95521.0,95520.0,0.12438692]
[1733217374137,0.0157278,95521.0,95520.0,0.12253418]
[1733217375277,0.0157278,95521.0,95520.0,0.12438692]
[1733217375908,0.2597652,95521.0,95520.0,0.12438692]